bitfinex/quotes_ETHUSD_20241109
["timestamp","ask_amount","ask_price","bid_price","bid_amount"]
[1731127400422,0.06730364,2971.8,2970.8,0.01]
[1731127400604,0.06730364,2971.8,2970.7,3.53118621]
[1731127401402,0.06730364,2971.8,2970.7,3.52118621]
[1731127401605,0.7834,2971.7,2970.5,0.01]
[1731127401944,0.06730364,2971.6,2970.5,0.01]
[1731127402099,0.7834,2971.5,2970.3,3.53118621]
[1731127402301,0.06730364,2971.4,2970.3,3.53118621]
[1731127403104,0.7834,2971.3,2970.1,0.02]
[1731127403304,0.06730364,2971.2,2970.1,0.02]
[1731127404443,0.06730364,2971.2,2970.1,0.01]
[1731127404602,0.06730364,2971.2,2970.1,0.02]
[1731127405738,0.06730364,2971.2,2970.1,0.08732721]
[1731127406877,0.06730364,2971.2,2970.3,3.52118621]
[1731127407079,0.06730364,2971.2,2970.4,0.06732398]
[1731127407466,0.06730364,2971.2,2970.3,3.52118621]
[1731127413686,0.06730364,2971.2,2970.1,0.68085134]
[1731127413998,0.06730364,2971.2,2970.1,3.54118621]
[1731127415890,0.7834,2971.1,2970.1,3.54118621]
[1731127416102,0.06730364,2971.0,2970.1,0.02]
[1731127417084,0.7834,2970.9,2969.8,12.17]
[1731127417399,0.7834,2970.7,2969.8,12.17]
[1731127417607,0.06730364,2970.6,2969.8,12.17]
[1731127420168,0.06730364,2970.6,2969.6,12.17]
[1731127420369,0.7783,2970.5,2969.6,12.17]
[1731127420692,0.7783,2970.3,2969.5,12.17]
[1731127420898,0.06730364,2970.2,2969.5,12.17]
[1731127421114,0.06730364,2970.2,2969.7,0.01]
[1731127421311,0.7783,2970.3,2969.7,0.01]
[1731127421473,0.7783,2970.3,2969.7,0.07733537]
[1731127421918,0.7783,2970.3,2969.7,0.01]
[1731127422088,0.7783,2970.3,2969.5,14.04111862]
[1731127422289,0.06730364,2970.2,2969.5,14.04111862]
[1731127422599,0.7783,2970.3,2969.6,1.7734541]
[1731127423206,0.7783,2970.3,2969.7,3.52118621]
[1731127423516,0.7783,2970.3,2969.9,0.01]
[1731127424088,0.7783,2970.3,2969.9,12.25733223]
[1731127424278,0.7783,2970.3,2969.9,1.89111862]
[1731127424475,0.7783,2970.9,2969.9,1.89111862]
[1731127424701,0.06730364,2970.8,2969.9,1.89111862]
[1731127425132,0.06730364,2970.8,2969.9,0.02]
[1731127427321,0.06730364,2970.8,2970.1,2.8619171]
[1731127427528,0.06730364,2971.1,2970.4,2.8719171]
[1731127427748,0.06730364,2971.3,2970.4,2.8719171]
[1731127428581,0.06730364,2971.3,2970.5,0.0673199]
[1731127430339,0.06581662,2971.3,2970.5,0.0673199]
[1731127431078,0.06581662,2971.3,2970.4,2.8719171]
[1731127431867,0.7783,2971.2,2970.3,0.01]
[1731127432046,0.0643296,2971.1,2970.3,0.01]
[1731127432251,0.7783,2971.0,2970.2,0.01]
[1731127432428,0.0643296,2970.9,2970.2,0.01]
[1731127432759,0.7783,2970.8,2969.9,3.02]
[1731127432960,0.0643296,2970.7,2970.0,12.17]
[1731127435822,0.7783,2970.6,2970.0,12.17]
[1731127436023,0.0643296,2970.5,2970.0,12.17]
[1731127436224,0.0643296,2970.5,2969.8,12.17]
[1731127439742,0.8426296,2970.6,2969.9,0.067339]
[1731127440063,0.8426296,2970.6,2969.9,1.284339]
[1731127440871,0.7783,2970.6,2969.9,1.284339]
[1731127441339,0.7783,2970.6,2970.0,2.8719171]
[1731127441542,0.7783,2970.6,2970.1,0.48295396]
[1731127441975,0.7783,2970.6,2970.1,12.65295396]
[1731127442130,0.7783,2970.6,2970.1,12.58562561]
[1731127443337,0.7783,2970.6,2970.2,0.06732832]
[1731127444071,0.7783,2970.6,2970.1,12.17]
[1731127444072,0.0643296,2970.5,2970.1,12.17]
[1731127447809,0.0643296,2970.5,2969.8,12.17]
[1731127448181,0.0643296,2970.5,2969.8,15.0319171]
[1731127448502,0.8426296,2970.6,2969.9,0.06733862]
[1731127449421,0.7783,2970.6,2969.9,0.06733862]
[1731127449969,0.7783,2970.6,2969.8,15.0419171]
[1731127450173,0.7783,2970.6,2969.9,1.50519171]
[1731127450821,0.0643296,2970.5,2969.4,0.01]
[1731127451008,1.46495897,2970.4,2969.2,0.07734785]
[1731127451225,0.76688857,2970.3,2969.4,0.01]
[1731127451426,0.0643296,2970.3,2969.4,0.01]
[1731127451645,0.0643296,2970.3,2969.2,0.01]
[1731127451815,0.7624,2970.2,2969.2,1.51519171]
[1731127452018,0.0643296,2970.1,2969.2,1.51519171]
[1731127452920,0.0643296,2970.1,2969.2,1.50519171]
[1731127453115,0.7624,2970.0,2969.2,0.01]
[1731127453342,0.0643296,2969.9,2969.1,3.0]
[1731127453706,0.0643296,2969.9,2969.2,0.01]
[1731127453906,0.0643296,2969.9,2969.0,0.01]
[1731127455846,0.7624,2969.8,2969.0,12.17]
[1731127456151,0.0643296,2969.7,2969.0,12.17]
[1731127457742,0.7624,2969.6,2969.0,12.17]
[1731127457945,0.0643296,2969.5,2969.0,12.17]
[1731127459750,0.0643296,2969.5,2968.8,12.18]
[1731127466289,0.0643296,2969.5,2968.8,12.17]
[1731127467036,0.0643296,2969.5,2968.5,12.18]
[1731127467203,0.0643296,2969.5,2968.6,12.17]
[1731127467586,0.0643296,2969.5,2968.7,0.07736233]
[1731127467792,0.7624,2969.6,2969.1,0.01]
[1731127468004,0.7624,2969.6,2969.1,15.0419171]
[1731127470824,0.7624,2969.6,2969.1,12.17]
[1731127471630,0.7624,2969.6,2969.0,12.17]
[1731127474141,0.7624,2969.6,2969.1,0.06735808]
[1731127474659,0.7624,2969.6,2969.0,13.388]
[1731127476364,0.7624,2969.6,2969.0,13.398]
[1731127477462,0.7624,2969.6,2969.1,12.17]
[1731127483454,0.7624,2969.6,2968.9,12.17]
[1731127484381,0.0643296,2969.5,2968.9,12.17]
[1731127486353,0.8296,2969.4,2968.9,12.17]
[1731127486559,0.0643296,2969.3,2968.9,12.17]
[1731127487567,0.8296,2969.4,2968.9,12.17]
[1731127489153,0.0643296,2969.3,2968.9,12.17]
[1731127489353,0.0643296,2969.3,2969.0,12.17]
[1731127489554,0.8296,2969.2,2968.6,12.17]
[1731127489809,0.0643296,2969.1,2968.6,12.17]
[1731127492209,0.0643296,2969.1,2968.5,12.17]
[1731127492383,0.0643296,2969.1,2968.3,12.17]
[1731127493309,0.0643296,2969.1,2968.4,12.17]
[1731127493508,0.0643296,2969.1,2968.3,12.17]
[1731127494103,0.0643296,2969.1,2968.4,12.17]
[1731127495495,0.0643296,2969.1,2968.3,12.17]
[1731127495707,0.0643296,2969.1,2968.1,3.01]
[1731127495708,0.0643296,2969.1,2968.2,12.18]
[1731127495909,0.0643296,2969.1,2968.2,12.17]
[1731127496091,0.8296,2969.0,2968.1,12.18]
[1731127496287,0.0643296,2968.9,2968.1,12.18]
[1731127496487,0.0643296,2968.9,2968.1,13.68519171]
[1731127497400,0.0643296,2968.9,2968.2,1.32253144]
[1731127498209,0.8296,2969.0,2968.4,1.32253144]
[1731127499869,0.8296,2969.0,2968.6,1.32253144]
[1731127501189,0.8296,2969.0,2968.7,12.17]
[1731127507084,0.8296,2969.0,2968.5,12.17]
[1731127508609,0.0643296,2968.9,2968.5,12.17]
[1731127512830,0.8296,2969.0,2968.5,12.17]
[1731127513667,0.0643296,2969.2,2968.8,1.32253144]
[1731127513816,0.0643296,2969.3,2968.8,1.32253144]
[1731127514855,0.0643296,2969.4,2968.8,1.32253144]
[1731127520635,0.8312,2969.5,2969.0,1.32253144]
[1731127524839,0.8312,2969.5,2969.0,13.49253144]
[1731127530727,0.8312,2969.5,2969.1,12.17]
[1731127530890,0.8312,2969.5,2969.2,12.17]
[1731127536694,0.8312,2969.5,2969.1,12.17]
[1731127547848,0.7522,2969.8,2969.4,1.32253144]
[1731127548010,0.7522,2969.8,2969.6,1.32253144]
[1731127548345,0.7522,2970.1,2969.6,1.32253144]
[1731127548521,0.7522,2970.1,2969.6,13.49253144]
[1731127548853,0.7522,2970.1,2969.6,14.84278458]
[1731127550146,0.7522,2970.1,2969.7,12.17]
[1731127550346,0.7522,2970.1,2969.8,1.32253144]
[1731127554463,0.7522,2970.1,2969.8,13.49253144]
[1731127555466,0.7522,2970.1,2969.8,12.17]
[1731127557342,0.7522,2970.1,2969.8,13.03672538]
[1731127559865,0.7522,2970.1,2969.8,12.17]
[1731127560385,0.7522,2970.1,2969.4,0.01]
[1731127560386,0.0643296,2970.0,2969.4,13.50253144]
[1731127561587,0.7522,2970.1,2969.6,1.32253144]
[1731127563157,0.0643296,2970.3,2969.8,1.32253144]
[1731127563358,0.06581662,2970.3,2969.8,1.32253144]
[1731127568282,0.76837559,2970.7,2970.2,1.32253144]
[1731127568486,0.06581662,2970.8,2970.4,1.32253144]
[1731127568791,0.06581662,2970.8,2970.2,1.33253144]
[1731127569583,0.06581662,2971.0,2970.2,1.33253144]
[1731127570164,0.32370191,2971.0,2970.2,1.33253144]
[1731127573398,0.32370191,2971.0,2970.2,0.01]
[1731127574056,0.7758,2970.9,2970.2,0.01]
[1731127574258,0.06581662,2970.8,2970.2,1.33253144]
[1731127574699,0.7758,2970.9,2970.4,1.32253144]
[1731127575597,0.84161662,2971.2,2970.6,1.32253144]
[1731127579359,0.84161662,2971.2,2970.6,1.38985187]
[1731127579670,0.7758,2971.2,2970.6,1.50791663]
[1731127581400,0.7758,2971.2,2970.6,1.57523501]
[1731127583908,0.7758,2971.2,2970.8,1.32253144]
[1731127589670,0.7758,2971.2,2970.6,1.50791663]
[1731127589863,0.7758,2971.2,2970.6,1.32253144]
[1731127591314,0.7758,2971.2,2970.4,1.33253144]
[1731127592029,0.06581662,2971.1,2970.4,1.33253144]
[1731127592931,0.06581662,2971.1,2970.5,12.17]
[1731127593130,0.06581662,2971.1,2970.6,1.35025314]
[1731127594635,0.7758,2971.2,2970.7,1.33253144]
[1731127595437,0.7852,2971.6,2971.1,1.32253144]
[1731127595735,0.7852,2971.6,2971.1,13.49253144]
[1731127596398,0.7852,2971.6,2971.1,13.50253144]
[1731127596711,0.7852,2971.6,2971.1,14.32385682]
[1731127598498,0.7852,2971.6,2971.3,1.32253144]
[1731127599224,0.7852,2971.6,2971.2,12.17]
[1731127601330,0.7852,2971.6,2971.3,1.32253144]
[1731127602638,0.7852,2971.6,2971.2,12.17]
[1731127603443,0.7852,2971.6,2971.2,13.52025314]
[1731127603650,0.7852,2971.6,2971.2,12.17]
[1731127603808,0.86151662,2971.5,2971.2,12.17]
[1731127604836,0.86151662,2971.5,2970.8,1.32253144]
[1731127606447,0.86151662,2971.5,2970.8,1.38984634]
[1731127606747,0.86151662,2971.5,2970.9,1.35698463]
[1731127608221,0.7957,2971.5,2971.2,1.32253144]
[1731127608937,0.7957,2971.9,2971.2,1.32253144]
[1731127609171,0.7957,2971.9,2971.2,13.49253144]
[1731127609350,0.7957,2971.9,2971.3,1.35025314]
[1731127611484,0.06581662,2971.8,2971.3,1.35025314]
[1731127611693,0.06581662,2971.8,2971.2,13.49253144]
[1731127612486,0.06581662,2971.8,2971.2,12.17]
[1731127615500,0.06581662,2971.8,2971.3,1.32253144]
[1731127616839,0.06581662,2971.8,2971.2,12.17]
[1731127617140,0.7957,2971.7,2971.2,12.17]
[1731127617321,0.06581662,2971.6,2971.2,12.17]
[1731127619540,0.06581662,2971.6,2971.2,13.49253144]
[1731127619744,0.06581662,2971.6,2971.0,1.32253144]
[1731127619952,0.06581662,2971.6,2971.0,2.67178458]
[1731127620608,0.06581662,2971.6,2971.0,2.73909471]
[1731127621832,0.06581662,2971.6,2971.0,2.67178458]
[1731127622047,0.06581662,2971.6,2970.9,12.634]
[1731127622048,0.06581662,2971.6,2970.9,12.18]
[1731127625664,0.06581662,2971.6,2970.9,0.01]
[1731127626864,0.06581662,2971.6,2970.8,12.17]
[1731127627019,0.772,2971.5,2970.8,12.17]
[1731127627226,0.06581662,2971.4,2970.8,12.17]
[1731127627427,0.06581662,2971.4,2970.8,13.82125314]
[1731127628653,0.772,2971.3,2970.8,13.82125314]
[1731127629070,0.06581662,2971.2,2970.8,12.17]
[1731127629872,0.8181,2971.1,2970.9,1.32253144]
[1731127630590,0.8181,2971.3,2970.9,1.32253144]
[1731127630951,0.8181,2971.3,2970.9,1.38984403]
[1731127631147,1.58647559,2971.6,2971.2,1.32253144]
[1731127631383,0.8181,2971.6,2971.2,1.32253144]
[1731127632188,0.8181,2971.6,2971.4,1.32253144]
[1731127632674,1.52065897,2972.1,2971.5,0.07730413]
[1731127632865,0.8181,2972.1,2971.8,1.32253144]
[1731127634079,0.8181,2972.1,2971.6,1.32253144]
[1731127635386,0.8181,2972.1,2971.5,0.01]
[1731127635592,0.8181,2972.1,2971.5,0.29689542]
[1731127641396,0.77,2972.4,2971.8,0.01]
[1731127641972,0.76837559,2972.7,2972.0,0.454]
[1731127642212,0.84305567,2972.9,2972.2,2.86895419]
[1731127642515,0.1404967,2972.9,2972.3,0.06727755]
[1731127643009,0.1404967,2972.9,2972.2,2.86895419]
[1731127643208,0.1404967,2972.9,2972.3,0.28789542]
[1731127643409,0.1404967,2972.9,2972.3,0.35517115]
[1731127643613,0.1404967,2972.9,2972.3,0.28789542]
[1731127645014,0.20631332,2972.9,2972.2,0.01]
[1731127645510,0.77,2972.8,2972.0,3.01]
[1731127645715,0.06581662,2972.7,2972.0,3.01]
[1731127645918,0.06581662,2972.7,2972.0,0.01]
[1731127646291,0.06581662,2972.7,2972.0,0.29689542]
[1731127646498,0.06581662,2972.7,2972.0,0.01]
[1731127647598,0.06581662,2972.7,2971.8,0.01]
[1731127647910,0.77,2972.6,2971.8,0.01]
[1731127648218,0.06581662,2972.5,2971.8,0.01]
[1731127652221,0.1404967,2972.9,2972.0,2.85895419]
[1731127652534,0.20631332,2972.9,2972.0,2.85895419]
[1731127652693,0.20631332,2972.9,2972.0,3.19224961]
[1731127652893,0.20631332,2972.9,2972.1,0.01]
[1731127653101,0.20631332,2972.9,2972.2,0.01]
[1731127653823,0.1404967,2972.9,2972.4,0.454]
[1731127654825,0.1404967,2972.9,2972.5,0.06727523]
[1731127655123,0.1404967,2972.9,2972.5,0.33902294]
[1731127655824,0.1404967,2972.9,2972.8,0.01]
[1731127659838,0.1404967,2972.9,2972.5,0.01]
[1731127665122,0.1404967,2972.9,2972.5,0.0772749]
[1731127665438,0.1404967,2972.9,2972.5,0.01]
[1731127665644,0.1404967,2972.9,2972.5,0.71057031]
[1731127666645,0.1404967,2972.9,2972.5,0.01]
[1731127666818,0.1404967,2972.9,2972.5,0.07727484]
[1731127667329,0.1404967,2972.9,2972.5,0.06727484]
[1731127667515,0.1404967,2972.9,2972.5,0.07727484]
[1731127667721,0.1404967,2972.9,2972.5,0.01]
[1731127670123,0.1404967,2972.9,2972.3,0.02]
[1731127670323,0.1404967,2972.9,2972.3,0.01]
[1731127670618,0.7993,2972.8,2972.3,0.01]
[1731127672120,0.7993,2972.8,2972.1,12.17]
[1731127672332,0.7993,2972.6,2971.9,0.01]
[1731127672551,0.06581662,2972.5,2971.9,0.01]
[1731127672844,0.06581662,2972.5,2971.9,0.29689542]
[1731127674464,0.06581662,2972.5,2971.9,0.01]
[1731127675659,0.7993,2972.4,2971.5,0.01]
[1731127675958,0.06581662,2972.3,2971.5,0.01]
[1731127676720,0.7993,2972.2,2971.5,0.01]
[1731127677152,0.06581662,2972.1,2971.5,0.01]
[1731127678864,0.06581662,2972.1,2971.7,0.01]
[1731127679643,0.06581662,2972.1,2971.5,0.01]
[1731127683934,0.7681,2972.0,2971.5,0.01]
[1731127686261,0.7681,2972.0,2971.5,0.44397123]
[1731127693975,0.06581662,2972.6,2971.8,1.31971227]
[1731127694184,0.8281,2972.5,2971.8,1.31971227]
[1731127695085,0.8281,2972.5,2972.0,1.31971227]
[1731127698168,0.8281,2972.5,2971.8,1.31971227]
[1731127700252,0.8281,2972.5,2971.8,2.6696835]
[1731127702876,0.8281,2972.5,2971.8,1.31971227]
[1731127707811,0.8281,2972.5,2971.7,0.01]
[1731127710803,0.06581662,2972.4,2971.7,0.01]
[1731127711117,0.06581662,2972.4,2971.8,1.31971227]
[1731127714840,0.76837559,2972.4,2971.8,1.31971227]
[1731127717335,0.70255897,2972.3,2971.8,1.31971227]
[1731127717639,0.76837559,2972.4,2971.8,1.31971227]
[1731127719705,0.70255897,2972.3,2971.8,1.31971227]
[1731127720400,0.76837559,2972.4,2971.8,1.31971227]
[1731127720613,0.76837559,2972.4,2971.8,2.6706835]
[1731127724161,0.70255897,2972.3,2971.8,2.6706835]
[1731127724460,0.76837559,2972.4,2971.8,2.6706835]
[1731127725559,0.70255897,2972.4,2971.8,2.6706835]
[1731127726672,1.53065897,2972.5,2971.9,0.01]
[1731127727170,1.53065897,2972.5,2971.9,0.464]
[1731127728149,0.8281,2972.5,2971.9,0.464]
[1731127728677,0.8281,2972.5,2971.8,0.01]
[1731127728678,0.06581662,2972.4,2971.8,0.01]
[1731127728882,0.8323,2972.3,2971.7,0.01]
[1731127729177,1.53485897,2972.3,2971.8,0.01]
[1731127729404,1.53485897,2972.3,2971.7,0.01]
[1731127729540,1.10049394,2972.4,2971.7,0.01]
[1731127729541,0.8323,2972.1,2971.7,0.01]
[1731127729735,0.8323,2972.1,2971.5,13.48971227]
[1731127729975,1.60067559,2972.1,2971.6,0.01]
[1731127730661,0.70255897,2972.0,2971.6,0.01]
[1731127730974,1.60067559,2972.1,2971.6,0.01]
[1731127731479,0.8323,2972.0,2971.6,0.01]
[1731127731693,1.53485897,2972.0,2971.6,0.01]
[1731127732882,1.53485897,2972.0,2971.2,12.17]
[1731127732883,0.8323,2971.8,2971.2,12.19]
[1731127733041,1.53485897,2971.8,2971.2,0.02]
[1731127733585,0.06581662,2971.7,2971.2,0.02]
[1731127733791,1.60067559,2971.8,2971.2,0.02]
[1731127735787,1.60067559,2971.8,2971.2,0.01]
[1731127735959,0.8323,2971.7,2971.0,12.18]
[1731127736289,0.8323,2971.5,2971.0,12.18]
[1731127736791,0.8323,2971.3,2970.8,0.01]
[1731127737986,0.8323,2971.3,2970.6,1.33971227]
[1731127738369,0.8323,2971.3,2970.8,1.31971227]
[1731127744386,0.8323,2971.3,2970.6,1.33971227]
[1731127744614,0.8323,2971.3,2970.6,2.6906835]
[1731127745030,0.8323,2971.3,2970.6,1.33971227]
[1731127745519,0.8323,2971.3,2970.6,1.32971227]
[1731127745690,0.8323,2971.3,2970.6,0.02]
[1731127745896,0.8323,2971.3,2970.6,1.4070281]
[1731127746420,0.8323,2971.3,2970.8,1.78371227]
[1731127746617,0.8323,2971.3,2970.9,0.24568206]
[1731127746832,0.8323,2971.3,2971.0,1.31971227]
[1731127746984,0.7676,2971.6,2971.1,0.06730881]
[1731127747180,0.7676,2971.6,2971.0,1.31971227]
[1731127747384,0.7676,2971.6,2971.0,1.32971227]
[1731127747586,0.7676,2971.6,2971.0,1.52692062]
[1731127748198,0.7676,2971.6,2971.1,0.01]
[1731127748417,0.7676,2971.6,2971.2,1.31971227]
[1731127750424,3.0,2972.2,2971.4,1.31971227]
[1731127750425,0.7676,2971.9,2971.4,1.31971227]
[1731127750588,0.7676,2972.1,2971.6,1.31971227]
[1731127750787,0.7676,2972.1,2971.5,0.01]
[1731127751891,0.7676,2972.1,2971.5,0.07729467]
[1731127752386,0.7676,2972.1,2971.5,0.26339536]
[1731127753320,0.7676,2972.1,2971.5,0.19610069]
[1731127753638,0.7676,2972.1,2971.5,0.26339533]
[1731127753785,0.7676,2972.1,2971.7,0.01]
[1731127753987,0.7676,2972.1,2971.7,0.07729467]
[1731127754224,0.7676,2972.1,2971.7,0.01]
[1731127754587,0.06581662,2972.5,2971.9,0.01]
[1731127754788,0.7676,2972.4,2971.9,0.07728741]
[1731127755033,0.7676,2972.4,2971.9,0.26338738]
[1731127755332,0.7676,2972.4,2972.0,0.01]
[1731127758694,0.89353769,2972.9,2972.4,0.01]
[1731127758695,0.7676,2972.7,2972.4,0.01]
[1731127759418,0.7676,2972.7,2972.2,0.01]
[1731127759733,0.19097872,2972.9,2972.2,0.01]
[1731127759734,0.8001,2972.5,2972.2,0.01]
[1731127760621,0.8001,2972.5,2971.9,0.01]
[1731127760820,0.8001,2972.5,2971.8,0.01]
[1731127762332,0.8001,2972.5,2972.0,0.01]
[1731127765410,0.8001,2972.5,2971.8,0.02]
[1731127767713,0.8001,2972.5,2971.8,12.19]
[1731127767928,0.8001,2972.5,2971.9,1.35097123]
[1731127769147,0.8001,2972.5,2972.0,0.01]
[1731127769939,0.25679534,2972.9,2972.1,0.454]
[1731127769940,0.7993,2972.8,2972.1,0.454]
[1731127770141,0.06581662,2972.7,2972.1,0.454]
[1731127770842,0.06581662,2972.7,2972.0,0.02]
[1731127772255,0.7993,2972.6,2972.0,0.02]
[1731127773641,0.7993,2972.6,2972.0,0.01]
[1731127774492,0.06581662,2972.5,2971.9,12.18]
[1731127776320,0.06581662,2972.5,2971.9,12.17]
[1731127777568,0.7993,2972.4,2971.9,12.17]
[1731127777732,0.06581662,2972.3,2971.9,12.17]
[1731127779555,0.06581662,2972.3,2971.7,0.01]
[1731127782644,0.06581662,2972.3,2971.8,0.454]
[1731127783957,0.06581662,2972.3,2971.8,0.464]
[1731127784160,0.7993,2972.4,2971.8,1.78371227]
[1731127784363,0.7993,2972.4,2971.9,0.17937123]
[1731127785185,0.7993,2972.4,2971.8,0.464]
[1731127788454,0.7753,2972.7,2972.0,0.01]
[1731127789169,0.7753,2972.7,2972.3,0.01]
[1731127792655,0.7753,2972.7,2972.2,0.464]
[1731127793189,0.7753,2972.7,2972.1,12.17]
[1731127793551,0.84111662,2972.7,2972.1,12.17]
[1731127793793,0.7753,2972.7,2972.2,0.01]
[1731127794367,1.47785897,2972.7,2972.2,0.01]
[1731127795687,1.54367559,2972.7,2972.2,0.01]
[1731127797784,1.54367559,2972.7,2972.0,0.02]
[1731127797988,1.54367559,2972.7,2972.2,0.01]
[1731127798469,1.54367559,2972.7,2972.0,0.02]
[1731127798669,0.70255897,2972.6,2972.0,0.02]
[1731127798966,1.54367559,2972.7,2972.0,1.71637123]
[1731127799374,1.54367559,2972.7,2972.2,0.01]
[1731127799569,1.54367559,2972.7,2972.0,1.71637123]
[1731127799773,0.70255897,2972.6,2972.0,1.71637123]
[1731127800083,0.70255897,2972.6,2972.2,0.01]
[1731127800486,1.54367559,2972.7,2972.2,0.01]
[1731127800891,0.70255897,2972.6,2972.2,0.01]
[1731127801890,0.70255897,2972.6,2972.0,1.70637123]
[1731127802232,0.70255897,2972.6,2972.2,0.01]
[1731127802900,1.47785897,2972.7,2972.2,0.01]
[1731127803826,0.70255897,2972.6,2972.2,0.01]
[1731127804308,1.47785897,2972.7,2972.2,0.01]
[1731127805627,0.70255897,2972.6,2972.2,0.01]
[1731127806329,0.70255897,2972.6,2972.0,0.01]
[1731127806630,0.70255897,2972.6,2972.2,0.02]
[1731127806800,1.47785897,2972.7,2972.3,0.454]
[1731127807904,0.76837559,2972.6,2972.0,0.464]
[1731127808104,0.76837559,2972.6,2972.2,0.01]
[1731127808304,0.76837559,2972.6,2972.0,0.474]
[1731127809041,0.7938,2972.5,2972.0,0.01]
[1731127809198,1.49635897,2972.5,2972.0,0.01]
[1731127811030,0.7938,2972.5,2972.0,0.01]
[1731127811799,1.49635897,2972.5,2972.0,0.01]
[1731127812010,0.7938,2972.5,2972.0,0.01]
[1731127812210,0.70255897,2972.7,2972.2,0.01]
[1731127812735,0.70255897,2972.8,2972.2,1.32971227]
[1731127812900,1.75315431,2972.9,2972.4,0.01]
[1731127817006,1.05059534,2972.9,2972.4,0.01]
[1731127821328,1.3293785,2972.9,2972.4,0.01]
[1731127821612,1.3293785,2972.9,2972.2,0.01]
[1731127821613,1.3293785,2972.9,2972.2,0.02]
[1731127822111,1.3293785,2972.9,2972.4,0.01]
[1731127825250,1.3293785,2972.9,2972.2,0.02]
[1731127825452,1.05059534,2972.9,2972.2,1.71637123]
[1731127825626,1.05059534,2972.9,2972.4,0.01]
[1731127826214,1.75315431,2972.9,2972.4,0.01]
[1731127826415,1.75315431,2972.9,2972.2,0.02]
[1731127827028,1.75315431,2972.9,2972.1,12.17]
[1731127827029,0.7971,2972.7,2972.1,12.17]
[1731127827229,0.76837559,2972.6,2972.1,12.18]
[1731127827461,0.76837559,2972.6,2972.1,12.17]
[1731127827959,0.76837559,2972.6,2972.1,12.18]
[1731127828114,1.18396078,2972.6,2972.1,12.17]
[1731127828932,0.70255897,2972.5,2972.1,12.17]
[1731127830019,0.70255897,2972.5,2971.9,0.464]
[1731127838773,0.7535,2972.3,2971.9,0.454]
[1731127839633,1.45605897,2972.3,2971.9,0.454]
[1731127839835,0.7535,2972.3,2971.8,0.01]
[1731127840051,1.45605897,2972.3,2971.8,0.01]
[1731127840426,1.45605897,2972.3,2971.9,0.01]
[1731127840861,1.71171426,2972.3,2971.7,12.634]
[1731127841060,0.76837559,2972.2,2971.7,12.634]
[1731127841851,0.76837559,2972.2,2971.7,0.464]
[1731127845291,0.7535,2972.1,2971.4,12.17]
[1731127845443,1.05253438,2972.0,2971.5,0.01]
[1731127845643,0.34997541,2972.0,2971.4,12.18]
[1731127845847,1.05253438,2972.0,2971.4,12.18]
[1731127846254,0.7535,2971.9,2971.4,12.17]
[1731127846549,0.7535,2971.9,2971.3,12.17]
[1731127846550,0.06581662,2971.8,2971.3,12.17]
[1731127846790,0.7535,2971.7,2971.3,12.17]
[1731127846986,0.06581662,2971.6,2971.3,12.17]
[1731127848346,0.06581662,2971.6,2971.4,12.17]
[1731127848848,0.7949,2971.5,2971.4,12.17]
[1731127849052,0.7949,2971.5,2971.0,12.17]
[1731127849254,0.06581662,2971.4,2971.0,12.17]
[1731127849462,0.06581662,2971.4,2970.8,12.17]
[1731127849666,0.7949,2971.3,2970.7,0.02]
[1731127849848,0.06581662,2971.2,2970.7,0.02]
[1731127850079,0.06581662,2971.2,2970.5,0.01]
[1731127850281,0.7949,2971.1,2970.5,0.01]
[1731127850450,0.06581662,2971.0,2970.5,0.01]
[1731127850655,0.06581662,2971.4,2970.7,0.01]
[1731127850850,0.7949,2971.3,2970.7,0.07731611]
[1731127851386,0.7949,2971.3,2970.7,0.01]
[1731127855073,0.7949,2971.3,2970.4,1.77371227]
[1731127855074,0.7949,2971.1,2970.8,12.17]
[1731127855274,0.06581662,2971.0,2970.5,0.01]
[1731127856676,0.7949,2970.9,2970.3,0.01]
[1731127856978,0.7949,2970.9,2970.3,0.18937123]
[1731127858171,0.7949,2970.9,2970.3,0.01]
[1731127858375,0.7949,2970.7,2970.3,0.01]
[1731127858601,0.7949,2970.7,2970.2,0.01]
[1731127859119,0.7949,2970.7,2970.1,0.01]
[1731127859272,0.77394987,2970.7,2970.1,0.01]
[1731127859834,0.77394987,2970.7,2970.3,0.01]
[1731127862089,0.77394987,2970.7,2970.1,0.01]
[1731127862825,0.77394987,2970.7,2970.3,0.01]
[1731127862995,0.77394987,2970.7,2970.1,0.01]
[1731127863203,0.77394987,2970.7,2970.3,0.01]
[1731127864298,0.77394987,2970.7,2970.1,0.01]
[1731127864501,0.77394987,2970.7,2970.3,0.01]
[1731127865619,0.77394987,2970.7,2970.1,0.01]
[1731127865930,0.77394987,2970.7,2970.3,0.01]
[1731127866145,0.77394987,2970.7,2970.1,0.01]
[1731127868656,0.77394987,2970.7,2970.1,12.18]
[1731127868936,0.77394987,2970.7,2970.1,13.399]
[1731127869936,0.77394987,2970.7,2970.1,12.17]
[1731127870140,0.7779,2970.5,2970.1,12.17]
[1731127872710,0.7779,2970.5,2970.0,0.01]
[1731127874023,0.7779,2970.5,2970.0,1.32971227]
[1731127874211,0.7779,2970.5,2970.1,0.54223045]
[1731127874419,0.7779,2970.5,2970.1,0.73042472]
[1731127874624,0.7779,2970.5,2970.1,0.66309427]
[1731127874826,0.06581662,2971.2,2970.2,1.31971227]
[1731127874827,0.7779,2970.7,2970.2,1.31971227]
[1731127875139,0.7779,2970.7,2970.1,0.67309427]
[1731127877166,0.7779,2970.7,2970.2,0.07733022]
[1731127877460,0.7779,2970.7,2970.2,0.2843439]
[1731127877659,0.7779,2970.7,2970.2,0.21701368]
[1731127880469,0.7779,2970.7,2970.1,12.18]